[Event "*** SCC Grand Prix: Titled Tuesday Blitz"]
[Site "Chess.com"]
[Date "2020.06.09"]
[Round "1"]
[White "trriinu"]
[Black "LimeInTheCoconut"]
[Result "0-1"]
[WhiteElo "2005"]
[BlackElo "2484"]
[TimeControl "180+1"]
[EndTime "9:07:10 PDT"]
[Termination "LimeInTheCoconut won on time"]

1. e4 {[%clk 0:02:59.5]} 1... c6 {[%clk 0:02:59.5]} 2. d4 {[%clk 0:02:59.4]}
2... d5 {[%clk 0:02:59]} 3. Nc3 {[%clk 0:02:57.4]} 3... dxe4 {[%clk 0:02:58.7]}
4. Nxe4 {[%clk 0:02:57.4]} 4... Bf5 {[%clk 0:02:59.2]} 5. Ng3 {[%clk 0:02:57.4]}
5... Bg6 {[%clk 0:02:59.6]} 6. h4 {[%clk 0:02:57.4]} 6... h6 {[%clk 0:02:59.4]}
7. Nf3 {[%clk 0:02:57.6]} 7... e6 {[%clk 0:02:59.5]} 8. h5 {[%clk 0:02:20.4]}
8... Bh7 {[%clk 0:02:59]} 9. Bd3 {[%clk 0:02:20.4]} 9... Bxd3 {[%clk 0:02:58.1]}
10. Qxd3 {[%clk 0:02:20.6]} 10... Nf6 {[%clk 0:02:57.2]} 11. Ne5 {[%clk
0:01:53.1]} 11... Nbd7 {[%clk 0:02:47.1]} 12. f4 {[%clk 0:01:16.3]} 12... Be7
{[%clk 0:01:44]} 13. Bd2 {[%clk 0:01:03.9]} 13... O-O {[%clk 0:01:38.3]} 14. c3
{[%clk 0:00:57.5]} 14... c5 {[%clk 0:01:38.2]} 15. Nf3 {[%clk 0:00:36.5]} 15...
cxd4 {[%clk 0:01:36.4]} 16. Nxd4 {[%clk 0:00:36.6]} 16... Nc5 {[%clk 0:01:28.4]}
17. Qf3 {[%clk 0:00:33.2]} 17... Qb6 {[%clk 0:01:12.2]} 18. Rb1 {[%clk
0:00:26.4]} 18... Rfd8 {[%clk 0:00:59.1]} 19. O-O {[%clk 0:00:23.7]} 19... Rac8
{[%clk 0:00:53.1]} 20. Kh1 {[%clk 0:00:12.2]} 20... a6 {[%clk 0:00:49.5]} 21.
Be3 {[%clk 0:00:09.4]} 21... Qc7 {[%clk 0:00:48.9]} 22. f5 {[%clk 0:00:08.7]}
22... e5 {[%clk 0:00:48.7]} 23. Nde2 {[%clk 0:00:05.6]} 23... Rd3 {[%clk
0:00:34.7]} 24. Rbd1 {[%clk 0:00:04.4]} 24... Rcd8 {[%clk 0:00:33.4]} 25. Rxd3
{[%clk 0:00:04.4]} 25... Rxd3 {[%clk 0:00:34]} 26. Qf2 {[%clk 0:00:04.3]} 26...
Na4 {[%clk 0:00:21.4]} 27. b3 {[%clk 0:00:02.5]} 27... Nxc3 {[%clk 0:00:20.3]}
28. Rc1 {[%clk 0:00:03.2]} 28... Nfd5 {[%clk 0:00:17.2]} 29. Nxc3 {[%clk
0:00:03.1]} 29... Rxc3 {[%clk 0:00:16.6]} 30. Rd1 {[%clk 0:00:03.6]} 30... Nxe3
{[%clk 0:00:14.9]} 0-1

[Event "*** SCC Grand Prix: Titled Tuesday Blitz"]
[Site "Chess.com"]
[Date "2020.06.09"]
[Round "1"]
[White "Azoulas1"]
[Black "ENEASZ"]
[Result "0-1"]
[WhiteElo "1971"]
[BlackElo "2480"]
[TimeControl "180+1"]
[EndTime "9:07:11 PDT"]
[Termination "ENEASZ won on time"]

1. e4 {[%clk 0:02:57.9]} 1... d6 {[%clk 0:02:58.4]} 2. d4 {[%clk 0:02:56.4]}
2... Nf6 {[%clk 0:02:57.3]} 3. Nc3 {[%clk 0:02:55.6]} 3... e5 {[%clk 0:02:56.5]}
4. Nf3 {[%clk 0:02:54.1]} 4... Nbd7 {[%clk 0:02:47.8]} 5. Be2 {[%clk 0:02:46.9]}
5... Be7 {[%clk 0:02:47.6]} 6. O-O {[%clk 0:02:45.3]} 6... O-O {[%clk
0:02:47.3]} 7. h3 {[%clk 0:02:43.9]} 7... c6 {[%clk 0:02:46.6]} 8. Be3 {[%clk
0:02:42.2]} 8... b5 {[%clk 0:02:45.5]} 9. a3 {[%clk 0:02:37.2]} 9... a6 {[%clk
0:02:45.5]} 10. Qd2 {[%clk 0:02:35.1]} 10... Re8 {[%clk 0:02:45.4]} 11. Rad1
{[%clk 0:02:32.8]} 11... Qc7 {[%clk 0:02:44]} 12. dxe5 {[%clk 0:02:15.7]} 12...
dxe5 {[%clk 0:02:41.3]} 13. Rfe1 {[%clk 0:02:15.4]} 13... Nc5 {[%clk 0:02:37.4]}
14. Bxc5 {[%clk 0:02:10.9]} 14... Bxc5 {[%clk 0:02:38.3]} 15. Bf1 {[%clk
0:02:10.4]} 15... h6 {[%clk 0:02:35]} 16. Qc1 {[%clk 0:01:54.8]} 16... Be6
{[%clk 0:02:31.2]} 17. Nb1 {[%clk 0:01:39.2]} 17... Nh5 {[%clk 0:02:27.9]} 18.
c4 {[%clk 0:01:31.1]} 18... Rac8 {[%clk 0:02:17.3]} 19. b4 {[%clk 0:01:15.9]}
19... Be7 {[%clk 0:02:17.2]} 20. c5 {[%clk 0:01:14.9]} 20... Nf4 {[%clk
0:02:16.6]} 21. Kh2 {[%clk 0:01:11.4]} 21... a5 {[%clk 0:02:16.4]} 22. g3 {[%clk
0:01:09.3]} 22... Ng6 {[%clk 0:02:16.3]} 23. Bg2 {[%clk 0:01:07.2]} 23... Ra8
{[%clk 0:02:15.7]} 24. Nc3 {[%clk 0:01:01.3]} 24... axb4 {[%clk 0:02:15]} 25.
axb4 {[%clk 0:01:00.3]} 25... Kh7 {[%clk 0:02:13.2]} 26. Nd5 {[%clk 0:00:51.6]}
26... Qb7 {[%clk 0:02:02.7]} 27. Nxe7 {[%clk 0:00:48.9]} 27... Qxe7 {[%clk
0:02:03.6]} 28. Rd6 {[%clk 0:00:47]} 28... Ra2 {[%clk 0:02:03]} 29. Qe3 {[%clk
0:00:41.6]} 29... Rc8 {[%clk 0:01:57.2]} 30. Kg1 {[%clk 0:00:37]} 30... Rb2
{[%clk 0:01:49.6]} 31. Qc3 {[%clk 0:00:35.4]} 31... Rb3 {[%clk 0:01:49.7]} 32.
Qa1 {[%clk 0:00:26]} 32... Qe8 {[%clk 0:01:46.2]} 33. Nxe5 {[%clk 0:00:22.3]}
33... Ra8 {[%clk 0:01:42.7]} 34. Qd4 {[%clk 0:00:16.8]} 34... Nxe5 {[%clk
0:01:31.1]} 35. Qxe5 {[%clk 0:00:16.1]} 35... Ra2 {[%clk 0:01:32]} 36. Qf4
{[%clk 0:00:10.7]} 36... Rbb2 {[%clk 0:01:29.2]} 37. e5 {[%clk 0:00:09.9]} 37...
Rxf2 {[%clk 0:00:57.6]} 38. Qxf2 {[%clk 0:00:06.9]} 38... Rxf2 {[%clk
0:00:58.5]} 39. Kxf2 {[%clk 0:00:06.9]} 39... Qe7 {[%clk 0:00:59.4]} 40. Bxc6
{[%clk 0:00:05.9]} 40... Bc4 {[%clk 0:00:59.6]} 41. Be4+ {[%clk 0:00:05]} 41...
g6 {[%clk 0:01:00.1]} 42. Bd5 {[%clk 0:00:04.6]} 42... Qa7 {[%clk 0:00:50.8]}
43. e6 {[%clk 0:00:02.6]} 43... Qa2+ {[%clk 0:00:42.7]} 44. Re2 {[%clk
0:00:01.8]} 44... Qxe2+ {[%clk 0:00:39]} 0-1

[Event "*** SCC Grand Prix: Titled Tuesday Blitz"]
[Site "Chess.com"]
[Date "2020.06.09"]
[Round "1"]
[White "quesfr"]
[Black "bait_or_mate"]
[Result "0-1"]
[WhiteElo "2253"]
[BlackElo "2588"]
[TimeControl "180+1"]
[EndTime "9:07:12 PDT"]
[Termination "bait_or_mate won by checkmate"]

1. e4 {[%clk 0:02:53.9]} 1... c5 {[%clk 0:02:59.3]} 2. Nf3 {[%clk 0:02:52.1]}
2... e6 {[%clk 0:02:59.5]} 3. c3 {[%clk 0:02:50.6]} 3... Nf6 {[%clk 0:02:58.1]}
4. e5 {[%clk 0:02:49.8]} 4... Nd5 {[%clk 0:02:53.3]} 5. g3 {[%clk 0:02:50.1]}
5... d6 {[%clk 0:02:51.7]} 6. exd6 {[%clk 0:02:50.3]} 6... Bxd6 {[%clk 0:02:50]}
7. Bg2 {[%clk 0:02:50.9]} 7... O-O {[%clk 0:02:50.6]} 8. O-O {[%clk 0:02:51.5]}
8... Nc6 {[%clk 0:02:51.1]} 9. d4 {[%clk 0:02:52.1]} 9... b6 {[%clk 0:02:45]}
10. c4 {[%clk 0:02:45.6]} 10... Nde7 {[%clk 0:02:41.3]} 11. dxc5 {[%clk
0:02:34.8]} 11... Bxc5 {[%clk 0:02:42.2]} 12. Ne5 {[%clk 0:02:22.9]} 12... Bb7
{[%clk 0:02:41.1]} 13. Nxc6 {[%clk 0:02:13]} 13... Nxc6 {[%clk 0:02:42]} 14. Nc3
{[%clk 0:02:07.6]} 14... Qe7 {[%clk 0:02:35.8]} 15. Be3 {[%clk 0:01:43.3]} 15...
Bxe3 {[%clk 0:02:31.9]} 16. fxe3 {[%clk 0:01:43]} 16... Ne5 {[%clk 0:02:26.3]}
17. Qd4 {[%clk 0:01:30]} 17... Bxg2 {[%clk 0:02:20.9]} 18. Kxg2 {[%clk
0:01:30.9]} 18... Qb7+ {[%clk 0:02:20.9]} 19. e4 {[%clk 0:01:28.6]} 19... Nc6
{[%clk 0:02:13.1]} 20. Qe3 {[%clk 0:01:28]} 20... Rad8 {[%clk 0:02:09.9]} 21.
Rad1 {[%clk 0:01:25.9]} 21... Ne5 {[%clk 0:02:07.5]} 22. b3 {[%clk 0:01:21.7]}
22... Qe7 {[%clk 0:01:45.2]} 23. Rxd8 {[%clk 0:01:16.3]} 23... Rxd8 {[%clk
0:01:44.4]} 24. Rd1 {[%clk 0:01:16.3]} 24... Rxd1 {[%clk 0:01:22.1]} 25. Nxd1
{[%clk 0:01:16.1]} 25... Qd6 {[%clk 0:01:13.1]} 26. Nf2 {[%clk 0:01:14.6]} 26...
h6 {[%clk 0:01:07.9]} 27. Qc3 {[%clk 0:00:49.1]} 27... f6 {[%clk 0:00:50.6]} 28.
b4 {[%clk 0:00:41.4]} 28... Kf7 {[%clk 0:00:42.3]} 29. c5 {[%clk 0:00:38.7]}
29... bxc5 {[%clk 0:00:42.5]} 30. bxc5 {[%clk 0:00:38.9]} 30... Qc6 {[%clk
0:00:41.6]} 31. Kh3 {[%clk 0:00:33.2]} 31... Nd7 {[%clk 0:00:39.2]} 32. Nd3
{[%clk 0:00:21.9]} 32... Qxe4 {[%clk 0:00:24.4]} 33. c6 {[%clk 0:00:21.8]} 33...
Qe2 {[%clk 0:00:11.5]} 34. cxd7 {[%clk 0:00:16.6]} 34... Qf1+ {[%clk 0:00:11.5]}
35. Kg4 {[%clk 0:00:16.9]} 35... Qf5+ {[%clk 0:00:09.3]} 36. Kh4 {[%clk
0:00:15.3]} 36... g5+ {[%clk 0:00:10.2]} 37. Kh5 {[%clk 0:00:12.9]} 37... Qh3#
{[%clk 0:00:11.1]} 0-1

[Event "*** SCC Grand Prix: Titled Tuesday Blitz"]
[Site "Chess.com"]
[Date "2020.06.09"]
[Round "1"]
[White "PotapovaM"]
[Black "Jospem"]
[Result "0-1"]
[WhiteElo "2440"]
[BlackElo "2869"]
[TimeControl "180+1"]
[EndTime "9:07:15 PDT"]
[Termination "Jospem won on time"]

1. d4 {[%clk 0:02:59.7]} 1... Nf6 {[%clk 0:02:59.7]} 2. c4 {[%clk 0:03:00.2]}
2... e6 {[%clk 0:03:00.1]} 3. Nf3 {[%clk 0:03:00.6]} 3... Bb4+ {[%clk
0:03:00.4]} 4. Nbd2 {[%clk 0:03:00.5]} 4... d5 {[%clk 0:02:59.6]} 5. g3 {[%clk
0:02:57.8]} 5... O-O {[%clk 0:02:59.1]} 6. Bg2 {[%clk 0:02:57.9]} 6... a5 {[%clk
0:02:59.6]} 7. O-O {[%clk 0:02:57.7]} 7... b6 {[%clk 0:02:59.7]} 8. a3 {[%clk
0:02:55.1]} 8... Be7 {[%clk 0:02:58.8]} 9. Ne5 {[%clk 0:02:49.3]} 9... c6 {[%clk
0:02:58.1]} 10. e4 {[%clk 0:02:45.9]} 10... Bb7 {[%clk 0:02:57.2]} 11. b3 {[%clk
0:02:35.4]} 11... Nbd7 {[%clk 0:02:57.1]} 12. Bb2 {[%clk 0:02:30.1]} 12... Rc8
{[%clk 0:02:49.5]} 13. f4 {[%clk 0:02:21.9]} 13... c5 {[%clk 0:02:45.7]} 14.
exd5 {[%clk 0:02:16.3]} 14... exd5 {[%clk 0:02:44.5]} 15. Kh1 {[%clk 0:01:52.9]}
15... cxd4 {[%clk 0:02:30.6]} 16. Bxd4 {[%clk 0:01:52.2]} 16... Nc5 {[%clk
0:02:31.1]} 17. b4 {[%clk 0:01:42.4]} 17... axb4 {[%clk 0:02:20.8]} 18. axb4
{[%clk 0:01:43.3]} 18... Ne6 {[%clk 0:02:21.1]} 19. Bc3 {[%clk 0:01:32.8]} 19...
Qc7 {[%clk 0:02:16.6]} 20. Ra7 {[%clk 0:01:30.1]} 20... Ra8 {[%clk 0:02:01.1]}
21. Rxa8 {[%clk 0:01:23.5]} 21... Rxa8 {[%clk 0:01:58.1]} 22. f5 {[%clk
0:00:51.6]} 22... Nf8 {[%clk 0:01:55.5]} 23. g4 {[%clk 0:00:29.5]} 23... h6
{[%clk 0:01:39.3]} 24. h4 {[%clk 0:00:27.7]} 24... Bxb4 {[%clk 0:01:32.1]} 25.
Bxb4 {[%clk 0:00:19.3]} 25... Qxe5 {[%clk 0:01:32.2]} 26. g5 {[%clk 0:00:18.9]}
26... hxg5 {[%clk 0:01:30.1]} 27. hxg5 {[%clk 0:00:19.8]} 27... Ne4 {[%clk
0:01:30.1]} 28. Nxe4 {[%clk 0:00:15.1]} 28... dxe4 {[%clk 0:01:31]} 29. Bd6
{[%clk 0:00:15.2]} 29... Qc3 {[%clk 0:01:25.3]} 30. f6 {[%clk 0:00:10.8]} 30...
Ng6 {[%clk 0:01:14.9]} 31. fxg7 {[%clk 0:00:09.3]} 31... Rd8 {[%clk 0:01:09]}
32. Qh5 {[%clk 0:00:07.7]} 32... Rxd6 {[%clk 0:00:48.5]} 33. Qg4 {[%clk
0:00:01.8]} 33... Qxg7 {[%clk 0:00:41.6]} 34. Qf5 {[%clk 0:00:01.9]} 34... Qh8+
{[%clk 0:00:40.6]} 35. Kg1 {[%clk 0:00:01.7]} 35... Qd4+ {[%clk 0:00:38.6]} 36.
Kh1 {[%clk 0:00:01.5]} 36... Rd7 {[%clk 0:00:39.2]} 0-1

[Event "*** SCC Grand Prix: Titled Tuesday Blitz"]
[Site "Chess.com"]
[Date "2020.06.09"]
[Round "1"]
[White "Training_Day"]
[Black "DenLaz"]
[Result "0-1"]
[WhiteElo "2311"]
[BlackElo "2633"]
[TimeControl "180+1"]
[EndTime "9:07:15 PDT"]
[Termination "DenLaz won by resignation"]

1. e4 {[%clk 0:02:59.1]} 1... e5 {[%clk 0:02:59.3]} 2. Bc4 {[%clk 0:02:57]} 2...
Nf6 {[%clk 0:02:58.5]} 3. d3 {[%clk 0:02:57.1]} 3... Bc5 {[%clk 0:02:55.8]} 4.
Nf3 {[%clk 0:02:56.9]} 4... d6 {[%clk 0:02:55]} 5. c3 {[%clk 0:02:55.7]} 5...
Nbd7 {[%clk 0:02:51.2]} 6. O-O {[%clk 0:02:52.7]} 6... O-O {[%clk 0:02:49.6]} 7.
d4 {[%clk 0:02:50.8]} 7... Bb6 {[%clk 0:02:47.9]} 8. Re1 {[%clk 0:02:44.6]} 8...
c6 {[%clk 0:02:46.4]} 9. Bb3 {[%clk 0:02:44.7]} 9... h6 {[%clk 0:02:44.8]} 10.
Nbd2 {[%clk 0:02:44.2]} 10... Re8 {[%clk 0:02:45]} 11. Bc2 {[%clk 0:02:41.8]}
11... Nf8 {[%clk 0:02:44.2]} 12. h3 {[%clk 0:02:34]} 12... Ng6 {[%clk
0:02:41.4]} 13. Nf1 {[%clk 0:02:34.1]} 13... Be6 {[%clk 0:02:25.1]} 14. Ng3
{[%clk 0:02:32]} 14... Qd7 {[%clk 0:02:23.7]} 15. Nf5 {[%clk 0:01:53]} 15... d5
{[%clk 0:02:10]} 16. Nxe5 {[%clk 0:01:45.1]} 16... Nxe5 {[%clk 0:02:08.2]} 17.
dxe5 {[%clk 0:01:44.7]} 17... Nxe4 {[%clk 0:02:08.7]} 18. Bxe4 {[%clk
0:01:39.5]} 18... Bxf5 {[%clk 0:02:05.7]} 19. Bf3 {[%clk 0:01:09.7]} 19... Re6
{[%clk 0:02:04]} 20. Bf4 {[%clk 0:01:04.7]} 20... Rae8 {[%clk 0:02:01.9]} 21. c4
{[%clk 0:00:57.5]} 21... d4 {[%clk 0:01:57.8]} 22. b4 {[%clk 0:00:52]} 22... Bc7
{[%clk 0:01:54.4]} 23. Qa4 {[%clk 0:00:20.4]} 23... a6 {[%clk 0:01:48.9]} 24.
Rad1 {[%clk 0:00:16.2]} 24... Bxe5 {[%clk 0:01:49.3]} 25. Bxe5 {[%clk
0:00:16.1]} 25... Rxe5 {[%clk 0:01:50.2]} 26. Rxe5 {[%clk 0:00:10.5]} 26... Rxe5
{[%clk 0:01:51.1]} 27. b5 {[%clk 0:00:07]} 27... c5 {[%clk 0:01:43.6]} 28. Qb3
{[%clk 0:00:05.5]} 28... axb5 {[%clk 0:01:38.4]} 29. Qxb5 {[%clk 0:00:03.6]}
29... Qxb5 {[%clk 0:01:37.5]} 30. cxb5 {[%clk 0:00:04.5]} 30... b6 {[%clk
0:01:37.3]} 31. a4 {[%clk 0:00:04.3]} 31... Bc2 {[%clk 0:01:35]} 32. Ra1 {[%clk
0:00:04.1]} 32... d3 {[%clk 0:01:34.9]} 33. a5 {[%clk 0:00:03]} 33... bxa5
{[%clk 0:01:24]} 34. b6 {[%clk 0:00:03.1]} 34... d2 {[%clk 0:00:51]} 35. Kh2
{[%clk 0:00:03]} 35... Be4 {[%clk 0:00:44.9]} 36. Bxe4 {[%clk 0:00:01.7]} 36...
Rxe4 {[%clk 0:00:45.8]} 37. b7 {[%clk 0:00:01.9]} 37... Rb4 {[%clk 0:00:45.4]}
38. Rd1 {[%clk 0:00:02.5]} 38... Rxb7 {[%clk 0:00:45]} 39. Rxd2 {[%clk
0:00:03.4]} 39... a4 {[%clk 0:00:45.2]} 40. Rc2 {[%clk 0:00:03.1]} 40... Ra7
{[%clk 0:00:45.6]} 41. Rxc5 {[%clk 0:00:02.9]} 41... a3 {[%clk 0:00:46]} 42. Rc1
{[%clk 0:00:03.8]} 42... a2 {[%clk 0:00:46]} 43. Ra1 {[%clk 0:00:04.7]} 43...
Kf8 {[%clk 0:00:46.1]} 44. Kg3 {[%clk 0:00:05.6]} 44... Ke7 {[%clk 0:00:46.7]}
45. Kf3 {[%clk 0:00:06.5]} 45... Kd6 {[%clk 0:00:47.3]} 46. Ke4 {[%clk
0:00:07.4]} 46... Kc5 {[%clk 0:00:48]} 47. Kd3 {[%clk 0:00:07.8]} 47... Kb4
{[%clk 0:00:47.4]} 48. Kc2 {[%clk 0:00:07.9]} 48... Ka3 {[%clk 0:00:47.9]} 0-1

[Event "*** SCC Grand Prix: Titled Tuesday Blitz"]
[Site "Chess.com"]
[Date "2020.06.09"]
[Round "1"]
[White "stolencandy13"]
[Black "nihalsarin"]
[Result "0-1"]
[WhiteElo "2468"]
[BlackElo "3009"]
[TimeControl "180+1"]
[EndTime "9:07:19 PDT"]
[Termination "nihalsarin won by resignation"]

1. e4 {[%clk 0:02:59.9]} 1... e5 {[%clk 0:02:59.1]} 2. Nf3 {[%clk 0:02:59.6]}
2... Nc6 {[%clk 0:02:59.6]} 3. Nc3 {[%clk 0:03:00]} 3... Nf6 {[%clk 0:02:59.5]}
4. d4 {[%clk 0:02:59.3]} 4... exd4 {[%clk 0:03:00.4]} 5. Nxd4 {[%clk 0:03:00.2]}
5... Bb4 {[%clk 0:03:00.8]} 6. Nxc6 {[%clk 0:03:00.3]} 6... bxc6 {[%clk
0:03:01.7]} 7. Bd3 {[%clk 0:03:01]} 7... d5 {[%clk 0:03:01.4]} 8. exd5 {[%clk
0:03:01.9]} 8... O-O {[%clk 0:03:01.6]} 9. O-O {[%clk 0:02:26]} 9... Bg4 {[%clk
0:03:00.9]} 10. Be2 {[%clk 0:02:20.4]} 10... Bxe2 {[%clk 0:02:59.6]} 11. Nxe2
{[%clk 0:02:08.2]} 11... cxd5 {[%clk 0:02:59.4]} 12. Nd4 {[%clk 0:02:08.3]}
12... Qd7 {[%clk 0:02:55.7]} 13. Qf3 {[%clk 0:02:04.7]} 13... Rfe8 {[%clk
0:02:53.1]} 14. c3 {[%clk 0:01:52.4]} 14... Bf8 {[%clk 0:02:48.9]} 15. Be3
{[%clk 0:01:43.4]} 15... Rab8 {[%clk 0:02:26.1]} 16. b3 {[%clk 0:01:33.7]} 16...
Ne4 {[%clk 0:02:07.1]} 17. Rac1 {[%clk 0:01:26.5]} 17... c5 {[%clk 0:01:59.2]}
18. Nf5 {[%clk 0:01:24.7]} 18... Re5 {[%clk 0:01:59.2]} 19. Ng3 {[%clk
0:01:23.6]} 19... Rbe8 {[%clk 0:01:59.2]} 20. Bf4 {[%clk 0:01:13.8]} 20... R5e6
{[%clk 0:01:55.8]} 21. Rfd1 {[%clk 0:01:11.2]} 21... Qc6 {[%clk 0:01:54.4]} 22.
Nxe4 {[%clk 0:01:05.1]} 22... Rxe4 {[%clk 0:01:53.7]} 23. Be3 {[%clk 0:00:53.7]}
23... g6 {[%clk 0:01:48.5]} 24. h3 {[%clk 0:00:53.7]} 24... Bg7 {[%clk
0:01:48.5]} 25. Rd3 {[%clk 0:00:52.8]} 25... Qd6 {[%clk 0:00:59]} 26. g3 {[%clk
0:00:37.9]} 26... h5 {[%clk 0:00:53.4]} 27. h4 {[%clk 0:00:35.2]} 27... d4
{[%clk 0:00:52.5]} 28. Bf4 {[%clk 0:00:30.1]} 28... Qa6 {[%clk 0:00:47.1]} 29.
cxd4 {[%clk 0:00:27.2]} 29... Bxd4 {[%clk 0:00:48]} 30. Rd2 {[%clk 0:00:21.4]}
30... Re2 {[%clk 0:00:26.6]} 31. Rxe2 {[%clk 0:00:20.4]} 31... Rxe2 {[%clk
0:00:27]} 32. Qa8+ {[%clk 0:00:16.2]} 32... Kg7 {[%clk 0:00:25.6]} 33. Qd5
{[%clk 0:00:16.3]} 33... Bxf2+ {[%clk 0:00:20.1]} 34. Kh1 {[%clk 0:00:14.8]}
34... Bd4 {[%clk 0:00:20.5]} 35. Bg5 {[%clk 0:00:09]} 35... Qxa2 {[%clk
0:00:16.3]} 0-1

[Event "*** SCC Grand Prix: Titled Tuesday Blitz"]
[Site "Chess.com"]
[Date "2020.06.09"]
[Round "1"]
[White "IMDT02"]
[Black "rugbyclub"]
[Result "0-1"]
[WhiteElo "2500"]
[BlackElo "2120"]
[TimeControl "180+1"]
[EndTime "9:07:19 PDT"]
[Termination "rugbyclub won on time"]

1. d4 {[%clk 0:02:59.8]} 1... d5 {[%clk 0:02:50.1]} 2. Bf4 {[%clk 0:02:45.7]}
2... Nf6 {[%clk 0:02:49.2]} 3. e3 {[%clk 0:02:41.4]} 3... e6 {[%clk 0:02:49.1]}
4. Nd2 {[%clk 0:02:39.4]} 4... Bd6 {[%clk 0:02:48.7]} 5. Bg3 {[%clk 0:02:38.1]}
5... O-O {[%clk 0:02:47.1]} 6. Ngf3 {[%clk 0:02:29.2]} 6... b6 {[%clk
0:02:43.6]} 7. c3 {[%clk 0:02:25.5]} 7... Ba6 {[%clk 0:02:37.1]} 8. Bxa6 {[%clk
0:02:23.6]} 8... Nxa6 {[%clk 0:02:37.2]} 9. O-O {[%clk 0:02:23.3]} 9... c5
{[%clk 0:02:36.8]} 10. Qe2 {[%clk 0:02:22.9]} 10... Nb8 {[%clk 0:02:36.4]} 11.
e4 {[%clk 0:02:23]} 11... Bxg3 {[%clk 0:02:30.5]} 12. hxg3 {[%clk 0:02:22.3]}
12... dxe4 {[%clk 0:02:25.3]} 13. Nxe4 {[%clk 0:02:22.1]} 13... Nbd7 {[%clk
0:02:21.8]} 14. Rad1 {[%clk 0:02:20.3]} 14... Qc7 {[%clk 0:02:19.5]} 15. dxc5
{[%clk 0:02:09.2]} 15... bxc5 {[%clk 0:02:13.4]} 16. Nxf6+ {[%clk 0:02:05.7]}
16... Nxf6 {[%clk 0:02:13]} 17. b3 {[%clk 0:02:06.6]} 17... a5 {[%clk
0:02:11.9]} 18. a4 {[%clk 0:01:56.9]} 18... Rab8 {[%clk 0:02:09.3]} 19. Qc4
{[%clk 0:01:56.2]} 19... Rb6 {[%clk 0:01:59]} 20. Rd3 {[%clk 0:01:45.9]} 20...
Rfb8 {[%clk 0:01:54]} 21. Rfd1 {[%clk 0:01:45.3]} 21... h6 {[%clk 0:01:52.1]}
22. Nd2 {[%clk 0:01:42.5]} 22... Nd5 {[%clk 0:01:48]} 23. Re1 {[%clk 0:01:35.7]}
23... Rc6 {[%clk 0:01:36.7]} 24. Ne4 {[%clk 0:01:17.9]} 24... Nb6 {[%clk
0:01:20.4]} 25. Qb5 {[%clk 0:01:17.5]} 25... c4 {[%clk 0:01:06.1]} 26. bxc4
{[%clk 0:01:03.4]} 26... Nxc4 {[%clk 0:01:03.6]} 27. Qh5 {[%clk 0:01:01.6]}
27... Nb2 {[%clk 0:00:56.2]} 28. Rd4 {[%clk 0:00:56.1]} 28... Rd8 {[%clk
0:00:38.3]} 29. Qb5 {[%clk 0:00:18.3]} 29... Rb8 {[%clk 0:00:37.6]} 30. Qh5
{[%clk 0:00:16]} 30... Rc4 {[%clk 0:00:33.1]} 31. Rxc4 {[%clk 0:00:06]} 31...
Nxc4 {[%clk 0:00:34]} 32. Rd1 {[%clk 0:00:04.5]} 32... f5 {[%clk 0:00:18.3]} 33.
Nd2 {[%clk 0:00:03.8]} 33... Nb2 {[%clk 0:00:10.9]} 34. Re1 {[%clk 0:00:02.8]}
34... Nxa4 {[%clk 0:00:08.5]} 35. Rxe6 {[%clk 0:00:02]} 35... Nxc3 {[%clk
0:00:09.2]} 0-1

[Event "*** SCC Grand Prix: Titled Tuesday Blitz"]
[Site "Chess.com"]
[Date "2020.06.09"]
[Round "1"]
[White "NM2019"]
[Black "elohunter1999"]
[Result "0-1"]
[WhiteElo "2026"]
[BlackElo "2491"]
[TimeControl "180+1"]
[EndTime "9:07:19 PDT"]
[Termination "elohunter1999 won on time"]

1. c4 {[%clk 0:03:00.3]} 1... Nf6 {[%clk 0:02:59.2]} 2. Nc3 {[%clk 0:02:59.7]}
2... e6 {[%clk 0:02:58.4]} 3. Nf3 {[%clk 0:02:59.3]} 3... d5 {[%clk 0:02:58.2]}
4. d4 {[%clk 0:02:59.8]} 4... Nbd7 {[%clk 0:02:52.4]} 5. g3 {[%clk 0:02:59.8]}
5... Be7 {[%clk 0:02:35.1]} 6. Bg2 {[%clk 0:02:59.4]} 6... O-O {[%clk
0:02:33.3]} 7. O-O {[%clk 0:02:59.7]} 7... c6 {[%clk 0:02:33.2]} 8. b3 {[%clk
0:02:59]} 8... b6 {[%clk 0:02:32.2]} 9. a4 {[%clk 0:02:58.3]} 9... a5 {[%clk
0:02:28.8]} 10. Bb2 {[%clk 0:02:58]} 10... Ba6 {[%clk 0:02:28.2]} 11. Nd2 {[%clk
0:02:56.8]} 11... Rc8 {[%clk 0:02:26.5]} 12. Re1 {[%clk 0:02:53.8]} 12... c5
{[%clk 0:01:53.8]} 13. dxc5 {[%clk 0:02:51.8]} 13... d4 {[%clk 0:01:51.3]} 14.
Nb5 {[%clk 0:02:30.8]} 14... Bxb5 {[%clk 0:01:44.5]} 15. axb5 {[%clk 0:02:29.7]}
15... Bxc5 {[%clk 0:01:40.5]} 16. Ne4 {[%clk 0:01:41.4]} 16... Nxe4 {[%clk
0:01:28.6]} 17. Bxe4 {[%clk 0:01:40.3]} 17... Nf6 {[%clk 0:01:28.7]} 18. Bd3
{[%clk 0:01:39.8]} 18... e5 {[%clk 0:01:28.6]} 19. Qc2 {[%clk 0:01:36.9]} 19...
Re8 {[%clk 0:01:26.2]} 20. Bf5 {[%clk 0:01:35]} 20... Rc7 {[%clk 0:01:21]} 21.
Rad1 {[%clk 0:01:35]} 21... g6 {[%clk 0:01:18]} 22. Bh3 {[%clk 0:01:34.6]} 22...
Qe7 {[%clk 0:01:14]} 23. Bg2 {[%clk 0:01:29.6]} 23... Bb4 {[%clk 0:01:11]} 24.
Rf1 {[%clk 0:01:28.1]} 24... Rd8 {[%clk 0:01:10.4]} 25. Bc1 {[%clk 0:01:19.8]}
25... Nd7 {[%clk 0:01:02.8]} 26. e3 {[%clk 0:01:13.5]} 26... Nc5 {[%clk
0:01:02.7]} 27. exd4 {[%clk 0:01:10.6]} 27... exd4 {[%clk 0:01:03]} 28. Bd5
{[%clk 0:00:37.3]} 28... d3 {[%clk 0:01:00.2]} 29. Rxd3 {[%clk 0:00:37]} 29...
Nxd3 {[%clk 0:00:59]} 30. Qxd3 {[%clk 0:00:37.5]} 30... Bc5 {[%clk 0:00:55.2]}
31. Bb2 {[%clk 0:00:34]} 31... Rd6 {[%clk 0:00:44.4]} 32. Qd2 {[%clk 0:00:26]}
32... Rf6 {[%clk 0:00:35.6]} 33. Bxf6 {[%clk 0:00:17.1]} 33... Qxf6 {[%clk
0:00:36.5]} 34. Kg2 {[%clk 0:00:13.3]} 34... Re7 {[%clk 0:00:35.3]} 35. Re1
{[%clk 0:00:11.2]} 35... Bb4 {[%clk 0:00:35]} 36. Rxe7 {[%clk 0:00:05.5]} 36...
Bxd2 {[%clk 0:00:34.8]} 37. Rxf7 {[%clk 0:00:05.6]} 37... Qxf7 {[%clk
0:00:34.9]} 38. Bxf7+ {[%clk 0:00:05.8]} 38... Kxf7 {[%clk 0:00:35.6]} 39. Kf3
{[%clk 0:00:05.6]} 39... Ke7 {[%clk 0:00:33.4]} 40. Ke4 {[%clk 0:00:06.1]} 40...
Kd6 {[%clk 0:00:33.3]} 0-1